[Event "Titled Tuesday Blitz February 07 Early 2023"]
[White "Prieto Aranguren, Alain"]
[Black "Averjanov, Alexey"]
[WhiteFideId "2268906"]
[BlackFideId "14109867"]
[WhiteElo "2258"]
[BlackElo "2399"]
[Result "0-1"]
[Round "01"]
[TimeControl "180+2"]
[Date "2023.02.07"]
[WhiteClock "0:01:22"]
[BlackClock "0:02:34"]

1. d4 {[%clk 0:02:59]}  d5 {[%clk 0:02:59]} 2. c4 {[%clk 0:02:57]}  dxc4 {[%clk 0:02:59]} 3. e3 {[%clk 0:02:57]}  Nf6 {[%clk 0:03:00]} 4. Bxc4 {[%clk 0:02:57]}  e6 {[%clk 0:03:00]} 5. Nf3 {[%clk 0:02:55]}  a6 {[%clk 0:03:00]} 6. O-O {[%clk 0:02:54]}  b5 {[%clk 0:03:00]} 7. Be2 {[%clk 0:02:54]}  Bb7 {[%clk 0:03:00]} 8. a4 {[%clk 0:02:52]}  b4 {[%clk 0:03:00]} 9. Nbd2 {[%clk 0:02:51]}  Nbd7 {[%clk 0:03:00]} 10. a5 {[%clk 0:02:38]}  c5 {[%clk 0:03:00]} 11. Nc4 {[%clk 0:02:37]}  Qc7 {[%clk 0:03:00]} 12. Nfe5 {[%clk 0:02:34]}  Be7 {[%clk 0:03:00]} 13. Bf3 {[%clk 0:02:34]}  O-O {[%clk 0:02:58]} 14. Nxd7 {[%clk 0:02:26]}  Nxd7 {[%clk 0:02:57]} 15. Bxb7 {[%clk 0:02:25]}  Qxb7 {[%clk 0:02:58]} 16. Qf3 {[%clk 0:02:14]}  Qb5 {[%clk 0:02:54]} 17. b3 {[%clk 0:02:11]}  cxd4 {[%clk 0:02:54]} 18. exd4 {[%clk 0:02:09]}  Nf6 {[%clk 0:02:54]} 19. Re1 {[%clk 0:02:03]}  Nd5 {[%clk 0:02:53]} 20. Qg3 {[%clk 0:01:55]}  Bf6 {[%clk 0:02:51]} 21. Be3 {[%clk 0:01:52]}  Rad8 {[%clk 0:02:47]} 22. Nd6 {[%clk 0:01:47]}  Qd3 {[%clk 0:02:37]} 23. Bh6 {[%clk 0:01:22]}  Qxg3 {[%clk 0:02:34]} 0-1


[Site "https://www.chess.com"]

[Event "Titled Tuesday Blitz February 07 Early 2023"]
[White "Manukyan, Sargis A."]
[Black "Lacasa Diaz, Jose Antonio"]
[WhiteFideId "13303970"]
[BlackFideId "2203375"]
[WhiteElo "2158"]
[BlackElo "2359"]
[Result "1-0"]
[Round "01"]
[TimeControl "180+2"]
[Date "2023.02.07"]
[WhiteClock "0:01:05"]
[BlackClock "0:00:02"]

1. d4 {[%clk 0:02:56]}  d5 {[%clk 0:02:59]} 2. c4 {[%clk 0:02:56]}  e6 {[%clk 0:02:59]} 3. Nc3 {[%clk 0:02:56]}  c5 {[%clk 0:03:00]} 4. cxd5 {[%clk 0:02:53]}  exd5 {[%clk 0:03:00]} 5. Nf3 {[%clk 0:02:53]}  Nc6 {[%clk 0:03:01]} 6. g3 {[%clk 0:02:51]}  Nf6 {[%clk 0:03:01]} 7. Bg2 {[%clk 0:02:51]}  cxd4 {[%clk 0:03:02]} 8. Nxd4 {[%clk 0:02:51]}  Bc5 {[%clk 0:03:03]} 9. Nxc6 {[%clk 0:02:47]}  bxc6 {[%clk 0:03:03]} 10. O-O {[%clk 0:02:48]}  O-O {[%clk 0:03:03]} 11. Bg5 {[%clk 0:02:39]}  Re8 {[%clk 0:03:03]} 12. e4 {[%clk 0:02:33]}  d4 {[%clk 0:01:50]} 13. Na4 {[%clk 0:02:21]}  Be7 {[%clk 0:01:50]} 14. Rc1 {[%clk 0:02:06]}  h6 {[%clk 0:01:44]} 15. Bxf6 {[%clk 0:01:55]}  Bxf6 {[%clk 0:01:45]} 16. Rxc6 {[%clk 0:01:55]}  Bb7 {[%clk 0:01:37]} 17. Rc2 {[%clk 0:01:40]}  Bxe4 {[%clk 0:01:35]} 18. Bxe4 {[%clk 0:01:40]}  Rxe4 {[%clk 0:01:36]} 19. Rd2 {[%clk 0:01:40]}  Qa5 {[%clk 0:00:24]} 20. b3 {[%clk 0:01:39]}  Rae8 {[%clk 0:00:22]} 21. Kg2 {[%clk 0:01:26]}  h5 {[%clk 0:00:22]} 22. Qf3 {[%clk 0:01:18]}  h4 {[%clk 0:00:22]} 23. Rfd1 {[%clk 0:01:15]}  Qg5 {[%clk 0:00:12]} 24. Nb2 {[%clk 0:01:06]}  hxg3 {[%clk 0:00:07]} 25. hxg3 {[%clk 0:01:05]}  g6 {[%clk 0:00:02]} 26. Nd3 {[%clk 0:01:05]}  Kg7 {[%clk 0:00:02]} 27. Nf4 {[%clk 0:01:05]} 1-0


[Site "https://www.chess.com"]

[Event "Titled Tuesday Blitz February 07 Early 2023"]
[White "Martinez Ramirez, Lennis"]
[Black "Perez Rodriguez, Jennifer"]
[WhiteFideId "3509079"]
[BlackFideId "3507831"]
[WhiteElo "2426"]
[BlackElo "2242"]
[Result "0-1"]
[Round "01"]
[TimeControl "180+2"]
[Date "2023.02.07"]
[WhiteClock "0:00:02"]
[BlackClock "0:00:07"]

1. c4 {[%clk 0:02:55]}  c6 {[%clk 0:02:58]} 2. e4 {[%clk 0:02:54]}  d5 {[%clk 0:02:57]} 3. cxd5 {[%clk 0:02:54]}  cxd5 {[%clk 0:02:57]} 4. e5 {[%clk 0:02:55]}  Nc6 {[%clk 0:02:56]} 5. d4 {[%clk 0:02:55]}  e6 {[%clk 0:02:55]} 6. Nc3 {[%clk 0:02:56]}  Qb6 {[%clk 0:02:53]} 7. Nf3 {[%clk 0:02:55]}  Nge7 {[%clk 0:02:53]} 8. Bd3 {[%clk 0:02:39]}  Bd7 {[%clk 0:02:52]} 9. Bb1 {[%clk 0:02:37]}  Rc8 {[%clk 0:02:41]} 10. O-O {[%clk 0:02:35]}  Ng6 {[%clk 0:02:30]} 11. h4 {[%clk 0:02:04]}  Be7 {[%clk 0:02:21]} 12. g3 {[%clk 0:02:02]}  O-O {[%clk 0:02:04]} 13. h5 {[%clk 0:02:01]}  Nh8 {[%clk 0:02:04]} 14. Qd3 {[%clk 0:01:31]}  g6 {[%clk 0:02:02]} 15. a3 {[%clk 0:01:31]}  f5 {[%clk 0:01:55]} 16. exf6 {[%clk 0:00:46]}  Rxf6 {[%clk 0:01:54]} 17. Ne2 {[%clk 0:00:44]}  Rcf8 {[%clk 0:01:49]} 18. Bf4 {[%clk 0:00:36]}  Rf5 {[%clk 0:01:29]} 19. hxg6 {[%clk 0:00:21]}  Nxg6 {[%clk 0:01:26]} 20. Qd2 {[%clk 0:00:20]}  R5f6 {[%clk 0:01:00]} 21. Bxg6 {[%clk 0:00:19]}  Rxg6 {[%clk 0:00:58]} 22. Rae1 {[%clk 0:00:18]}  Bf6 {[%clk 0:00:40]} 23. Nc3 {[%clk 0:00:17]}  Nxd4 {[%clk 0:00:35]} 24. Nxd4 {[%clk 0:00:16]}  Qxd4 {[%clk 0:00:29]} 25. Qxd4 {[%clk 0:00:14]}  Bxd4 {[%clk 0:00:30]} 26. Be5 {[%clk 0:00:14]}  Bb6 {[%clk 0:00:26]} 27. Kg2 {[%clk 0:00:14]}  d4 {[%clk 0:00:26]} 28. Ne4 {[%clk 0:00:13]}  Bc6 {[%clk 0:00:26]} 29. f3 {[%clk 0:00:14]}  Rf5 {[%clk 0:00:22]} 30. Bb8 {[%clk 0:00:12]}  Rd5 {[%clk 0:00:16]} 31. g4 {[%clk 0:00:12]}  d3 {[%clk 0:00:16]} 32. Bf4 {[%clk 0:00:11]}  Rd4 {[%clk 0:00:13]} 33. Kg3 {[%clk 0:00:10]}  Bb5 {[%clk 0:00:11]} 34. Nc3 {[%clk 0:00:09]}  d2 {[%clk 0:00:10]} 35. Nxb5 {[%clk 0:00:09]}  dxe1=Q+ {[%clk 0:00:10]} 36. Rxe1 {[%clk 0:00:10]}  Rd3 {[%clk 0:00:09]} 37. Nd6 {[%clk 0:00:08]}  Rf6 {[%clk 0:00:08]} 38. Nxb7 {[%clk 0:00:05]}  Ba5 {[%clk 0:00:06]} 39. b4 {[%clk 0:00:05]}  Bb6 {[%clk 0:00:05]} 40. Re4 {[%clk 0:00:02]}  Rxa3 {[%clk 0:00:06]} 41. g5 {[%clk 0:00:02]}  Rf5 {[%clk 0:00:05]} 42. Nd6 {[%clk 0:00:03]}  Rd5 {[%clk 0:00:05]} 43. Ne8 {[%clk 0:00:02]}  Rdd3 {[%clk 0:00:05]} 44. Nf6+ {[%clk 0:00:03]}  Kf7 {[%clk 0:00:06]} 45. Kg4 {[%clk 0:00:04]}  Rxf3 {[%clk 0:00:06]} 46. Be5 {[%clk 0:00:04]}  Rf5 {[%clk 0:00:05]} 47. Bf4 {[%clk 0:00:02]}  Bf2 {[%clk 0:00:05]} 48. Nh5 {[%clk 0:00:02]}  Rd5 {[%clk 0:00:05]} 49. Rc4 {[%clk 0:00:02]}  Rdd3 {[%clk 0:00:05]} 50. Rc7+ {[%clk 0:00:03]}  Ke8 {[%clk 0:00:06]} 51. Nf6+ {[%clk 0:00:03]}  Kd8 {[%clk 0:00:07]} 52. Rd7+ {[%clk 0:00:02]}  Rxd7 {[%clk 0:00:07]} 0-1


[Site "https://www.chess.com"]

[Event "Titled Tuesday Blitz February 07 Early 2023"]
[White "Souleidis, Georgios"]
[Black "Chakravarthi Reddy, M"]
[WhiteFideId "4206827"]
[BlackFideId "25009532"]
[WhiteElo "2419"]
[BlackElo "2279"]
[Result "1-0"]
[Round "01"]
[TimeControl "180+2"]
[Date "2023.02.07"]
[WhiteClock "0:00:23"]
[BlackClock "0:00:25"]

1. e4 {[%clk 0:03:00]}  e5 {[%clk 0:02:59]} 2. Nc3 {[%clk 0:03:00]}  Nc6 {[%clk 0:02:59]} 3. Nf3 {[%clk 0:03:00]}  Nf6 {[%clk 0:03:00]} 4. d4 {[%clk 0:03:00]}  exd4 {[%clk 0:03:01]} 5. Nxd4 {[%clk 0:03:01]}  Bb4 {[%clk 0:02:59]} 6. Nxc6 {[%clk 0:03:01]}  bxc6 {[%clk 0:03:00]} 7. Bd3 {[%clk 0:03:02]}  O-O {[%clk 0:03:00]} 8. O-O {[%clk 0:03:02]}  d5 {[%clk 0:03:01]} 9. exd5 {[%clk 0:03:02]}  cxd5 {[%clk 0:03:01]} 10. h3 {[%clk 0:03:03]}  h6 {[%clk 0:02:54]} 11. Qf3 {[%clk 0:03:01]}  Bb7 {[%clk 0:02:52]} 12. Bf4 {[%clk 0:02:53]}  Rb8 {[%clk 0:02:52]} 13. Rad1 {[%clk 0:02:44]}  Bxc3 {[%clk 0:02:51]} 14. bxc3 {[%clk 0:02:44]}  d4 {[%clk 0:02:47]} 15. Qg3 {[%clk 0:01:49]}  Nh5 {[%clk 0:02:36]} 16. Qg4 {[%clk 0:01:49]}  Nxf4 {[%clk 0:02:25]} 17. Qxf4 {[%clk 0:01:49]}  c5 {[%clk 0:02:20]} 18. cxd4 {[%clk 0:01:48]}  cxd4 {[%clk 0:02:21]} 19. Rfe1 {[%clk 0:01:26]}  Kh8 {[%clk 0:02:16]} 20. Qf5 {[%clk 0:01:22]}  g6 {[%clk 0:02:09]} 21. Qe5+ {[%clk 0:01:22]}  Kh7 {[%clk 0:02:06]} 22. Bc4 {[%clk 0:01:10]}  Qd7 {[%clk 0:01:15]} 23. Rxd4 {[%clk 0:00:40]}  Qc6 {[%clk 0:01:15]} 24. Qg3 {[%clk 0:00:35]}  Rbd8 {[%clk 0:00:51]} 25. Rxd8 {[%clk 0:00:35]}  Rxd8 {[%clk 0:00:52]} 26. Bxf7 {[%clk 0:00:33]}  Qd6 {[%clk 0:00:39]} 27. Bxg6+ {[%clk 0:00:31]}  Kh8 {[%clk 0:00:31]} 28. Qxd6 {[%clk 0:00:29]}  Rxd6 {[%clk 0:00:31]} 29. Bd3 {[%clk 0:00:30]}  Rd7 {[%clk 0:00:30]} 30. f3 {[%clk 0:00:29]}  Kg7 {[%clk 0:00:30]} 31. Kf2 {[%clk 0:00:29]}  a5 {[%clk 0:00:28]} 32. Re5 {[%clk 0:00:28]}  a4 {[%clk 0:00:27]} 33. Ra5 {[%clk 0:00:28]}  Bc6 {[%clk 0:00:27]} 34. Ra6 {[%clk 0:00:25]}  Rd6 {[%clk 0:00:25]} 35. Be4 {[%clk 0:00:23]} 1-0


[Site "https://www.chess.com"]

[Event "Titled Tuesday Blitz February 07 Early 2023"]
[White "Bolanos, Fernando"]
[Black "Suder, Jakub"]
[WhiteFideId "3304094"]
[BlackFideId "1195310"]
[WhiteElo "2248"]
[BlackElo "2244"]
[Result "0-1"]
[Round "01"]
[TimeControl "180+2"]
[Date "2023.02.07"]
[WhiteClock "0:00:03"]
[BlackClock "0:00:02"]

1. e4 {[%clk 0:03:00]}  c5 {[%clk 0:02:59]} 2. Nf3 {[%clk 0:03:00]}  e6 {[%clk 0:03:00]} 3. d4 {[%clk 0:03:00]}  cxd4 {[%clk 0:03:00]} 4. Nxd4 {[%clk 0:03:01]}  Nc6 {[%clk 0:03:01]} 5. c4 {[%clk 0:02:57]}  Nf6 {[%clk 0:02:59]} 6. Nc3 {[%clk 0:02:58]}  Bb4 {[%clk 0:02:58]} 7. Qd3 {[%clk 0:02:50]}  O-O {[%clk 0:02:46]} 8. Be2 {[%clk 0:02:44]}  d5 {[%clk 0:02:24]} 9. exd5 {[%clk 0:02:21]}  exd5 {[%clk 0:02:24]} 10. Nxc6 {[%clk 0:02:19]}  bxc6 {[%clk 0:02:23]} 11. O-O {[%clk 0:02:17]}  d4 {[%clk 0:02:08]} 12. Ne4 {[%clk 0:02:06]}  Bf5 {[%clk 0:01:59]} 13. Nxf6+ {[%clk 0:02:05]}  Qxf6 {[%clk 0:02:00]} 14. Qf3 {[%clk 0:02:00]}  Qg6 {[%clk 0:01:53]} 15. Bf4 {[%clk 0:01:52]}  d3 {[%clk 0:01:48]} 16. Bd1 {[%clk 0:01:53]}  Rfe8 {[%clk 0:01:45]} 17. Ba4 {[%clk 0:01:51]}  Be4 {[%clk 0:01:40]} 18. Qg3 {[%clk 0:01:29]}  Qf6 {[%clk 0:01:39]} 19. a3 {[%clk 0:01:27]}  Bf8 {[%clk 0:01:23]} 20. b4 {[%clk 0:01:15]}  Rad8 {[%clk 0:01:08]} 21. Bg5 {[%clk 0:00:53]}  Qc3 {[%clk 0:01:02]} 22. Bxd8 {[%clk 0:00:53]}  Rxd8 {[%clk 0:01:02]} 23. f3 {[%clk 0:00:36]}  Bg6 {[%clk 0:00:54]} 24. Bxc6 {[%clk 0:00:18]}  Qxc4 {[%clk 0:00:52]} 25. Be4 {[%clk 0:00:16]}  Qd4+ {[%clk 0:00:50]} 26. Kh1 {[%clk 0:00:15]}  d2 {[%clk 0:00:46]} 27. Rad1 {[%clk 0:00:08]}  Bd6 {[%clk 0:00:24]} 28. Qg5 {[%clk 0:00:03]}  Be5 {[%clk 0:00:05]} 29. Bxg6 {[%clk 0:00:03]}  hxg6 {[%clk 0:00:06]} 30. f4 {[%clk 0:00:02]}  Bf6 {[%clk 0:00:06]} 31. Qg3 {[%clk 0:00:03]}  Qb2 {[%clk 0:00:05]} 32. f5 {[%clk 0:00:03]}  gxf5 {[%clk 0:00:05]} 33. Qf3 {[%clk 0:00:02]}  Qc2 {[%clk 0:00:04]} 34. Qe3 {[%clk 0:00:02]}  Bc3 {[%clk 0:00:03]} 35. Qxa7 {[%clk 0:00:03]}  Bf6 {[%clk 0:00:03]} 36. b5 {[%clk 0:00:03]}  Qc4 {[%clk 0:00:02]} 37. b6 {[%clk 0:00:03]}  Qxf1+ {[%clk 0:00:02]} 38. Rxf1 {[%clk 0:00:03]}  d1=Q {[%clk 0:00:02]} 39. Qa6 {[%clk 0:00:04]}  Qd7 {[%clk 0:00:01]} 40. a4 {[%clk 0:00:04]}  Rb8 {[%clk 0:00:01]} 41. a5 {[%clk 0:00:04]}  Bc3 {[%clk 0:00:01]} 42. Rb1 {[%clk 0:00:04]}  Qd6 {[%clk 0:00:01]} 43. b7 {[%clk 0:00:04]}  Qe5 {[%clk 0:00:01]} 44. Qa8 {[%clk 0:00:03]}  Bb4 {[%clk 0:00:01]} 45. a6 {[%clk 0:00:03]}  Bd6 {[%clk 0:00:02]} 46. a7 {[%clk 0:00:03]}  Qxh2# {[%clk 0:00:02]} 0-1


[Site "https://www.chess.com"]

[Event "Titled Tuesday Blitz February 07 Early 2023"]
[White "Megalios, Konstantinos"]
[Black "Kornyukov, Alexey"]
[WhiteFideId "4238044"]
[BlackFideId "4150457"]
[WhiteElo "2372"]
[BlackElo "2452"]
[Result "1-0"]
[Round "01"]
[TimeControl "180+2"]
[Date "2023.02.07"]
[WhiteClock "0:00:45"]
[BlackClock "0:00:59"]

1. Nf3 {[%clk 0:02:55]}  d5 {[%clk 0:02:38]} 2. g3 {[%clk 0:02:51]}  Nc6 {[%clk 0:02:37]} 3. c4 {[%clk 0:02:48]}  dxc4 {[%clk 0:02:37]} 4. Na3 {[%clk 0:02:48]}  e5 {[%clk 0:02:36]} 5. Nxc4 {[%clk 0:02:39]}  Be6 {[%clk 0:02:34]} 6. Ncxe5 {[%clk 0:02:22]}  Nxe5 {[%clk 0:02:29]} 7. Nxe5 {[%clk 0:02:20]}  Qd5 {[%clk 0:02:26]} 8. Nf3 {[%clk 0:02:07]}  Bg4 {[%clk 0:02:18]} 9. Bg2 {[%clk 0:02:06]}  O-O-O {[%clk 0:02:12]} 10. d3 {[%clk 0:02:00]}  Bb4+ {[%clk 0:02:09]} 11. Bd2 {[%clk 0:01:59]}  Bxd2+ {[%clk 0:02:03]} 12. Qxd2 {[%clk 0:02:00]}  Nf6 {[%clk 0:01:54]} 13. O-O {[%clk 0:01:47]}  Rhe8 {[%clk 0:01:52]} 14. Rfc1 {[%clk 0:01:38]}  Kb8 {[%clk 0:01:47]} 15. b4 {[%clk 0:01:29]}  Ne4 {[%clk 0:01:43]} 16. Qf4 {[%clk 0:01:25]}  Nf6 {[%clk 0:01:37]} 17. Qxc7+ {[%clk 0:01:14]}  Ka8 {[%clk 0:01:34]} 18. Ne5 {[%clk 0:00:58]}  Qb5 {[%clk 0:01:14]} 19. Nxf7 {[%clk 0:00:48]}  Be6 {[%clk 0:00:59]} 20. Nxd8 {[%clk 0:00:45]} 1-0


[Site "https://www.chess.com"]

[Event "Titled Tuesday Blitz February 07 Early 2023"]
[White "Koridze, Lile"]
[Black "Sanchez, Sebastian Felipe"]
[WhiteFideId "13612514"]
[BlackFideId "4403304"]
[WhiteElo "2191"]
[BlackElo "2427"]
[Result "0-1"]
[Round "01"]
[TimeControl "180+2"]
[Date "2023.02.07"]
[WhiteClock "0:01:12"]
[BlackClock "0:00:58"]

1. d4 {[%clk 0:03:00]}  Nf6 {[%clk 0:02:59]} 2. c4 {[%clk 0:02:59]}  e6 {[%clk 0:02:59]} 3. Nf3 {[%clk 0:03:00]}  d5 {[%clk 0:02:56]} 4. g3 {[%clk 0:03:00]}  Bb4+ {[%clk 0:02:53]} 5. Bd2 {[%clk 0:02:59]}  Be7 {[%clk 0:02:52]} 6. Bg2 {[%clk 0:02:59]}  O-O {[%clk 0:02:52]} 7. O-O {[%clk 0:02:59]}  Nbd7 {[%clk 0:02:52]} 8. Qc2 {[%clk 0:02:58]}  c6 {[%clk 0:02:51]} 9. Rd1 {[%clk 0:02:57]}  Ne4 {[%clk 0:02:50]} 10. b3 {[%clk 0:02:55]}  f5 {[%clk 0:02:34]} 11. Bc3 {[%clk 0:02:47]}  Bf6 {[%clk 0:02:23]} 12. e3 {[%clk 0:02:47]}  g5 {[%clk 0:02:02]} 13. Bb2 {[%clk 0:02:42]}  g4 {[%clk 0:02:02]} 14. Ne5 {[%clk 0:02:42]}  Nxe5 {[%clk 0:01:54]} 15. dxe5 {[%clk 0:02:43]}  Bg7 {[%clk 0:01:54]} 16. Nc3 {[%clk 0:02:40]}  Bd7 {[%clk 0:01:37]} 17. Nxe4 {[%clk 0:02:03]}  fxe4 {[%clk 0:01:19]} 18. Qe2 {[%clk 0:01:52]}  h5 {[%clk 0:01:18]} 19. h3 {[%clk 0:01:49]}  gxh3 {[%clk 0:01:17]} 20. Bxh3 {[%clk 0:01:49]}  Qg5 {[%clk 0:01:17]} 21. Bg2 {[%clk 0:01:38]}  Rf7 {[%clk 0:01:05]} 22. cxd5 {[%clk 0:01:32]}  exd5 {[%clk 0:01:02]} 23. Rac1 {[%clk 0:01:25]}  Bg4 {[%clk 0:01:01]} 24. Qd2 {[%clk 0:01:23]}  Bxd1 {[%clk 0:01:01]} 25. Rxd1 {[%clk 0:01:24]}  Bxe5 {[%clk 0:01:00]} 26. Ba3 {[%clk 0:01:12]}  h4 {[%clk 0:00:58]} 0-1


[Site "https://www.chess.com"]

[Event "Titled Tuesday Blitz February 07 Early 2023"]
[White "Iskusnyh, Sergei"]
[Black "OKEKE, Isaac Chukwudalu"]
[WhiteFideId "4120027"]
[BlackFideId "8508526"]
[WhiteElo "2440"]
[BlackElo "2155"]
[Result "1/2-1/2"]
[Round "01"]
[TimeControl "180+2"]
[Date "2023.02.07"]
[WhiteClock "0:00:08"]
[BlackClock "0:00:05"]

1. d4 {[%clk 0:02:51]}  d5 {[%clk 0:00:50]} 2. c4 {[%clk 0:02:48]}  e6 {[%clk 0:00:51]} 3. Nf3 {[%clk 0:02:47]}  Nf6 {[%clk 0:00:50]} 4. g3 {[%clk 0:02:46]}  Bb4+ {[%clk 0:00:49]} 5. Bd2 {[%clk 0:02:43]}  a5 {[%clk 0:00:49]} 6. Bg2 {[%clk 0:02:41]}  O-O {[%clk 0:00:47]} 7. a3 {[%clk 0:02:35]}  Be7 {[%clk 0:00:37]} 8. Qc2 {[%clk 0:02:31]}  c5 {[%clk 0:00:29]} 9. cxd5 {[%clk 0:02:28]}  Qxd5 {[%clk 0:00:25]} 10. Nc3 {[%clk 0:02:26]}  Qh5 {[%clk 0:00:17]} 11. dxc5 {[%clk 0:02:05]}  Qxc5 {[%clk 0:00:14]} 12. O-O {[%clk 0:02:02]}  Nc6 {[%clk 0:00:14]} 13. Rac1 {[%clk 0:02:00]}  e5 {[%clk 0:00:14]} 14. Be3 {[%clk 0:01:47]}  Qc4 {[%clk 0:00:12]} 15. Nd2 {[%clk 0:01:11]}  Qa6 {[%clk 0:00:08]} 16. Nde4 {[%clk 0:01:07]}  Be6 {[%clk 0:00:07]} 17. Nxf6+ {[%clk 0:01:05]}  Bxf6 {[%clk 0:00:07]} 18. Ne4 {[%clk 0:01:05]}  Be7 {[%clk 0:00:08]} 19. Nc5 {[%clk 0:00:59]}  Bxc5 {[%clk 0:00:08]} 20. Qxc5 {[%clk 0:00:58]}  Rfc8 {[%clk 0:00:08]} 21. Rfd1 {[%clk 0:00:48]}  Qxe2 {[%clk 0:00:07]} 22. Qb6 {[%clk 0:00:46]}  Nd4 {[%clk 0:00:06]} 23. Bxd4 {[%clk 0:00:43]}  Rxc1 {[%clk 0:00:04]} 24. Rxc1 {[%clk 0:00:42]}  exd4 {[%clk 0:00:05]} 25. Qxd4 {[%clk 0:00:41]}  h6 {[%clk 0:00:02]} 26. h4 {[%clk 0:00:34]}  Rb8 {[%clk 0:00:01]} 27. b4 {[%clk 0:00:29]}  Qg4 {[%clk 0:00:01]} 28. Qxg4 {[%clk 0:00:28]}  Bxg4 {[%clk 0:00:02]} 29. Rc7 {[%clk 0:00:28]}  b6 {[%clk 0:00:01]} 30. Bd5 {[%clk 0:00:27]}  Be6 {[%clk 0:00:02]} 31. Bxe6 {[%clk 0:00:27]}  fxe6 {[%clk 0:00:03]} 32. b5 {[%clk 0:00:27]}  Rd8 {[%clk 0:00:02]} 33. Rc6 {[%clk 0:00:26]}  Rd1+ {[%clk 0:00:02]} 34. Kg2 {[%clk 0:00:26]}  Ra1 {[%clk 0:00:03]} 35. Rxb6 {[%clk 0:00:24]}  Rxa3 {[%clk 0:00:04]} 36. Rxe6 {[%clk 0:00:25]}  Kf7 {[%clk 0:00:03]} 37. Ra6 {[%clk 0:00:23]}  Rb3 {[%clk 0:00:04]} 38. Rxa5 {[%clk 0:00:23]}  Kf6 {[%clk 0:00:04]} 39. Ra6+ {[%clk 0:00:22]}  Kf7 {[%clk 0:00:04]} 40. Rb6 {[%clk 0:00:22]}  Kg8 {[%clk 0:00:05]} 41. Rb8+ {[%clk 0:00:22]}  Kh7 {[%clk 0:00:05]} 42. h5 {[%clk 0:00:22]}  Rb4 {[%clk 0:00:06]} 43. b6 {[%clk 0:00:21]}  Rb5 {[%clk 0:00:05]} 44. g4 {[%clk 0:00:21]}  Rb4 {[%clk 0:00:05]} 45. f3 {[%clk 0:00:22]}  Rb3 {[%clk 0:00:06]} 46. Kg3 {[%clk 0:00:22]}  Rb4 {[%clk 0:00:06]} 47. Kf2 {[%clk 0:00:21]}  Rb3 {[%clk 0:00:06]} 48. Ke2 {[%clk 0:00:21]}  Rb4 {[%clk 0:00:06]} 49. b7 {[%clk 0:00:19]}  Rb6 {[%clk 0:00:06]} 50. f4 {[%clk 0:00:19]}  Re6+ {[%clk 0:00:05]} 51. Kf3 {[%clk 0:00:18]}  Rb6 {[%clk 0:00:06]} 52. g5 {[%clk 0:00:18]}  hxg5 {[%clk 0:00:06]} 53. fxg5 {[%clk 0:00:18]}  g6 {[%clk 0:00:07]} 54. hxg6+ {[%clk 0:00:16]}  Kg7 {[%clk 0:00:05]} 55. Ke4 {[%clk 0:00:16]}  Rb1 {[%clk 0:00:04]} 56. Ke5 {[%clk 0:00:16]}  Re1+ {[%clk 0:00:04]} 57. Kd4 {[%clk 0:00:16]}  Rd1+ {[%clk 0:00:05]} 58. Kc3 {[%clk 0:00:16]}  Rb1 {[%clk 0:00:05]} 59. Kc4 {[%clk 0:00:16]}  Rc1+ {[%clk 0:00:04]} 60. Kd5 {[%clk 0:00:16]}  Rd1+ {[%clk 0:00:04]} 61. Ke4 {[%clk 0:00:16]}  Re1+ {[%clk 0:00:05]} 62. Kd4 {[%clk 0:00:15]}  Rb1 {[%clk 0:00:05]} 63. Kc3 {[%clk 0:00:15]}  Rb5 {[%clk 0:00:04]} 64. Kc4 {[%clk 0:00:13]}  Rb1 {[%clk 0:00:04]} 65. Kd5 {[%clk 0:00:13]}  Rd1+ {[%clk 0:00:04]} 66. Ke6 {[%clk 0:00:13]}  Re1+ {[%clk 0:00:04]} 67. Kf5 {[%clk 0:00:13]}  Rf1+ {[%clk 0:00:04]} 68. Ke4 {[%clk 0:00:13]}  Re1+ {[%clk 0:00:04]} 69. Kf3 {[%clk 0:00:13]}  Rb1 {[%clk 0:00:04]} 70. Rd8 {[%clk 0:00:12]}  Rxb7 {[%clk 0:00:04]} 71. Rd6 {[%clk 0:00:12]}  Rb4 {[%clk 0:00:02]} 72. Kg3 {[%clk 0:00:11]}  Rc4 {[%clk 0:00:03]} 73. Re6 {[%clk 0:00:11]}  Rb4 {[%clk 0:00:03]} 74. Kf3 {[%clk 0:00:10]}  Rc4 {[%clk 0:00:04]} 75. Re4 {[%clk 0:00:09]}  Rxe4 {[%clk 0:00:03]} 76. Kxe4 {[%clk 0:00:08]}  Kxg6 {[%clk 0:00:04]} 77. Kf4 {[%clk 0:00:07]}  Kg7 {[%clk 0:00:05]} 78. Kf5 {[%clk 0:00:08]}  Kf7 {[%clk 0:00:05]} 79. g6+ {[%clk 0:00:07]}  Kg7 {[%clk 0:00:05]} 80. Kg5 {[%clk 0:00:08]}  Kg8 {[%clk 0:00:05]} 81. Kh5 {[%clk 0:00:07]}  Kg7 {[%clk 0:00:06]} 82. Kg5 {[%clk 0:00:07]}  Kg8 {[%clk 0:00:06]} 83. Kf6 {[%clk 0:00:07]}  Kf8 {[%clk 0:00:05]} 84. g7+ {[%clk 0:00:07]}  Kg8 {[%clk 0:00:05]} 85. Kg6 {[%clk 0:00:08]} 1/2-1/2


[Site "https://www.chess.com"]

[Event "Titled Tuesday Blitz February 07 Early 2023"]
[White "Ruiz Aguilar, Pablo Alexander"]
[Black "Shuvalova, Polina"]
[WhiteFideId "4401352"]
[BlackFideId "24171760"]
[WhiteElo "2161"]
[BlackElo "2484"]
[Result "0-1"]
[Round "01"]
[TimeControl "180+2"]
[Date "2023.02.07"]
[WhiteClock "0:00:02"]
[BlackClock "0:01:03"]

1. e4 {[%clk 0:02:57]}  c6 {[%clk 0:02:56]} 2. d4 {[%clk 0:02:56]}  d5 {[%clk 0:02:56]} 3. exd5 {[%clk 0:02:57]}  cxd5 {[%clk 0:02:56]} 4. c4 {[%clk 0:02:58]}  Nf6 {[%clk 0:02:55]} 5. Nc3 {[%clk 0:02:58]}  e6 {[%clk 0:02:55]} 6. Nf3 {[%clk 0:02:58]}  Bb4 {[%clk 0:02:55]} 7. Bd3 {[%clk 0:02:57]}  dxc4 {[%clk 0:02:53]} 8. Bxc4 {[%clk 0:02:57]}  O-O {[%clk 0:02:53]} 9. O-O {[%clk 0:02:57]}  b6 {[%clk 0:02:54]} 10. Ne5 {[%clk 0:02:53]}  Bb7 {[%clk 0:02:44]} 11. a3 {[%clk 0:02:46]}  Bxc3 {[%clk 0:02:42]} 12. bxc3 {[%clk 0:02:46]}  Nbd7 {[%clk 0:02:43]} 13. Qe2 {[%clk 0:02:21]}  Qc7 {[%clk 0:02:39]} 14. Bf4 {[%clk 0:02:13]}  Nxe5 {[%clk 0:02:31]} 15. Bxe5 {[%clk 0:02:11]}  Qc6 {[%clk 0:02:30]} 16. f3 {[%clk 0:02:01]}  Rac8 {[%clk 0:02:29]} 17. Bd3 {[%clk 0:01:54]}  Qxc3 {[%clk 0:02:26]} 18. Rfc1 {[%clk 0:01:39]}  Qxc1+ {[%clk 0:02:17]} 19. Rxc1 {[%clk 0:01:39]}  Rxc1+ {[%clk 0:02:18]} 20. Kf2 {[%clk 0:01:39]}  Rfc8 {[%clk 0:02:15]} 21. Kg3 {[%clk 0:01:19]}  Bd5 {[%clk 0:02:10]} 22. a4 {[%clk 0:01:16]}  Bc4 {[%clk 0:02:06]} 23. Bxf6 {[%clk 0:01:11]}  gxf6 {[%clk 0:02:00]} 24. Bxc4 {[%clk 0:01:09]}  R1xc4 {[%clk 0:01:59]} 25. d5 {[%clk 0:01:09]}  exd5 {[%clk 0:01:53]} 26. Qe7 {[%clk 0:01:08]}  Kg7 {[%clk 0:01:44]} 27. h4 {[%clk 0:01:02]}  Rxa4 {[%clk 0:01:30]} 28. h5 {[%clk 0:01:03]}  h6 {[%clk 0:01:28]} 29. Qd7 {[%clk 0:00:51]}  Rac4 {[%clk 0:01:25]} 30. Qxd5 {[%clk 0:00:47]}  R4c5 {[%clk 0:01:26]} 31. Qd7 {[%clk 0:00:47]}  R8c7 {[%clk 0:01:25]} 32. Qd8 {[%clk 0:00:47]}  a5 {[%clk 0:01:24]} 33. Kh4 {[%clk 0:00:46]}  b5 {[%clk 0:01:22]} 34. g4 {[%clk 0:00:45]}  b4 {[%clk 0:01:22]} 35. Qd4 {[%clk 0:00:38]}  b3 {[%clk 0:01:15]} 36. f4 {[%clk 0:00:33]}  Rc4 {[%clk 0:01:10]} 37. Qb2 {[%clk 0:00:28]}  a4 {[%clk 0:01:10]} 38. Qa1 {[%clk 0:00:11]}  Rxf4 {[%clk 0:01:05]} 39. Qe1 {[%clk 0:00:02]}  Rcc4 {[%clk 0:01:03]} 0-1


[Site "https://www.chess.com"]